fUSD/lending_fUSD_20241121
["ID","MTS","AMOUNT","RATE_DAILY","PERIOD"]
[342899553,1732199438522,-500.0,0.00041095,18]
[342899555,1732199438531,-500.0,0.00041095,18]
[342899557,1732199438541,-1321.86,0.00041095,18]
[342899568,1732199438641,-500.0,0.00041095,18]
[342899570,1732199438650,-500.0,0.00041095,18]
[342899572,1732199438660,-754.87,0.00041095,18]
[342899574,1732199438673,-500.0,0.00041095,18]
[342899576,1732199438682,-957.89,0.00041095,18]
[342899578,1732199438691,-570.04256692,0.00041095,18]
[342899580,1732199438702,-500.0,0.00041095,18]
[342899582,1732199438711,-1606.25,0.00041095,18]
[342899585,1732199438720,-500.0,0.00041095,18]
[342899586,1732199438729,-500.0,0.00041095,18]
[342899589,1732199438739,-500.0,0.00041095,18]
[342899590,1732199438748,-500.0,0.00041095,18]
[342899592,1732199438762,-500.0,0.00041095,18]
[342899594,1732199438772,-500.0,0.00041095,18]
[342899596,1732199438781,-500.0,0.00041095,18]
[342899598,1732199438790,-500.0,0.00041095,18]
[342899600,1732199438802,-1198.83,0.00041095,18]
[342899602,1732199438811,-1224.56,0.00041095,18]
[342899604,1732199438820,-500.0,0.00041095,18]
[342899606,1732199438830,-1944.0,0.00041095,18]
[342899608,1732199438839,-500.0,0.00041095,18]
[342899610,1732199438848,-500.0,0.00041095,18]
[342899612,1732199438858,-500.0,0.00041095,18]
[342899614,1732199438868,-844.23,0.00041095,18]
[342899616,1732199438878,-507.20254655,0.00041095,18]
[342899618,1732199438887,-500.0,0.00041095,18]
[342899620,1732199438897,-500.0,0.00041095,18]
[342899622,1732199438906,-20792.91,0.00041095,18]
[342899624,1732199438914,-502.14674069,0.00041095,18]
[342899626,1732199438927,-500.0,0.00041095,18]
[342899628,1732199438936,-500.0,0.00041095,18]
[342899630,1732199438945,-915.43,0.00041095,18]
[342899632,1732199438955,-2900.43,0.00041095,18]
[342899634,1732199438964,-1472.33,0.00041095,18]
[342899636,1732199438973,-500.0,0.00041095,18]
[342899638,1732199438983,-500.0,0.00041095,18]
[342899640,1732199438996,-500.0,0.00041095,18]
[342899642,1732199439007,-500.0,0.00041095,18]
[342899644,1732199439017,-1620.61,0.00041095,18]
[342899646,1732199439027,-500.0,0.00041095,18]
[342899648,1732199439036,-951.6,0.00041095,18]
[342899650,1732199439046,-500.0,0.00041095,18]
[342899652,1732199439056,-500.0,0.00041095,18]
[342899654,1732199439065,-500.0,0.00041095,18]
[342899656,1732199439075,-1310.37,0.00041095,18]
[342899658,1732199439084,-500.0,0.00041095,18]
[342899660,1732199439094,-13540.77,0.00041095,5]
[342899662,1732199439103,-500.0,0.00041095,18]
[342899664,1732199439113,-500.0,0.00041095,18]
[342899666,1732199439122,-500.63656345,0.00041095,18]
[342899668,1732199439132,-897.1,0.00041095,18]
[342899670,1732199439141,-629.14,0.00041095,18]
[342899672,1732199439151,-500.0,0.00041095,18]
[342899674,1732199439160,-500.0,0.00041095,18]
[342899676,1732199439173,-500.0,0.00041095,18]
[342899678,1732199439182,-500.0,0.00041095,18]
[342899680,1732199439191,-500.0,0.00041095,18]
[342899682,1732199439201,-875.2,0.00041095,18]
[342899684,1732199439211,-500.0,0.00041095,18]
[342899686,1732199439221,-500.0,0.00041095,18]
[342899688,1732199439230,-500.0,0.00041095,18]
[342899690,1732199439240,-547.3,0.00041095,18]
[342899692,1732199439250,-500.0,0.00041095,18]
[342899694,1732199439259,-500.0,0.00041095,18]
[342899696,1732199439269,-500.0,0.00041095,18]
[342899698,1732199439279,-500.0,0.00041095,18]
[342899700,1732199439288,-500.0,0.00041095,18]
[342899702,1732199439298,-500.0,0.00041095,18]
[342899704,1732199439307,-500.0,0.00041095,18]
[342899706,1732199439317,-1326.33,0.00041095,18]
[342899707,1732199439326,-1571.68,0.00041095,18]
[342899709,1732199439335,-500.0,0.00041095,18]
[342899712,1732199439345,-500.0,0.00041095,18]
[342899713,1732199439355,-500.0,0.00041095,18]
[342899715,1732199439364,-500.0,0.00041095,18]
[342899717,1732199439373,-574.36,0.00041095,18]
[342899719,1732199439383,-500.0,0.00041095,18]
[342899721,1732199439392,-500.0,0.00041095,18]
[342899723,1732199439401,-524.78,0.00041095,18]
[342899725,1732199439411,-500.0,0.00041095,18]
[342899727,1732199439424,-500.0,0.00041095,18]
[342899730,1732199439434,-500.0,0.00041095,18]
[342899732,1732199439443,-500.0,0.00041095,18]
[342899735,1732199439453,-500.0,0.00041095,18]
[342899738,1732199439463,-523.67,0.00041095,18]
[342899739,1732199439472,-538.28,0.00041095,18]
[342899741,1732199439483,-500.0,0.00041095,18]
[342899743,1732199439493,-500.0,0.00041095,18]
[342899746,1732199439502,-500.0,0.00041095,18]
[342899748,1732199439512,-1538.48,0.00041095,18]
[342899749,1732199439522,-500.0,0.00041095,18]
[342899752,1732199439532,-500.0,0.00041095,18]
[342899754,1732199439541,-500.0,0.00041095,18]
[342899756,1732199439551,-500.0,0.00041095,18]
[342899757,1732199439561,-500.0,0.00041095,18]
[342899759,1732199439571,-500.0,0.00041095,18]
[342899761,1732199439580,-500.0,0.00041095,18]
[342899763,1732199439590,-572.13,0.00041095,18]
[342899766,1732199439600,-500.0,0.00041095,18]
[342899767,1732199439609,-500.0,0.00041095,18]
[342899770,1732199439620,-500.0,0.00041095,18]
[342899772,1732199439630,-500.0,0.00041095,18]
[342899773,1732199439639,-2381.3,0.00041095,18]
[342899775,1732199439649,-2579.86,0.00041095,18]
[342899777,1732199439659,-1957.75,0.00041095,18]
[342899779,1732199439671,-654.89,0.00041095,18]
[342899782,1732199439680,-753.6,0.00041095,18]
[342899784,1732199439690,-500.0,0.00041095,18]
[342899786,1732199439699,-500.0,0.00041095,18]
[342899788,1732199439710,-3745.49,0.00041095,18]
[342899790,1732199439720,-500.76,0.00041095,18]
[342899792,1732199439729,-507.2,0.00041095,18]
[342899794,1732199439738,-683.13,0.00041095,18]
[342899796,1732199439748,-1260.3,0.00041095,18]
[342899798,1732199439759,-500.0,0.00041095,18]
[342899800,1732199439769,-500.0,0.00041095,18]
[342899802,1732199439779,-14860.05,0.00041095,18]
[342899803,1732199439793,-523.71,0.00041095,18]
[342899806,1732199439803,-1008.3,0.00041095,18]
[342899807,1732199439812,-500.0,0.00041095,18]
[342899809,1732199439822,-675.11,0.00041095,18]
[342899811,1732199439831,-1290.48,0.00041095,18]
[342899813,1732199439841,-500.0,0.00041095,18]
[342899815,1732199439850,-1291.16,0.00041095,18]
[342899817,1732199439860,-846.23,0.00041095,18]
[342899819,1732199439870,-500.0,0.00041095,18]
[342899821,1732199439879,-500.0,0.00041095,18]
[342899823,1732199439888,-500.0,0.00041095,18]
[342899825,1732199439898,-500.0,0.00041095,18]
[342899827,1732199439907,-581.71,0.00041095,18]
[342899829,1732199439916,-921.32,0.00041095,18]
[342899831,1732199439927,-3778.72,0.00041095,18]
[342899833,1732199439936,-3513.14,0.00041095,18]
[342899835,1732199439946,-532.42,0.00041095,18]
[342899837,1732199439955,-632.39,0.00041095,18]
[342899839,1732199439965,-1143.04,0.00041095,18]
[342899841,1732199439974,-575.56,0.00041095,18]
[342899843,1732199439983,-500.0,0.00041095,18]
[342899845,1732199439993,-163.84865195,0.00041095,18]
[342899847,1732199440002,-500.0,0.00041095,18]
[342899849,1732199440012,-500.0,0.00041095,18]
[342899851,1732199440022,-500.0,0.00041095,18]
[342899853,1732199440031,-667.59,0.00041095,18]
[342899855,1732199440040,-503.3,0.00041095,18]
[342899857,1732199440049,-500.0,0.00041095,18]
[342899859,1732199440058,-506.82,0.00041095,18]
[342899861,1732199440067,-500.0,0.00041095,18]
[342899863,1732199440077,-2396.91,0.00041095,18]
[342899865,1732199440086,-630.63676387,0.00041095,18]
[342899867,1732199440095,-500.0,0.00041095,18]
[342899869,1732199440104,-500.0,0.00041095,18]
[342899871,1732199440115,-734.85,0.00041095,18]
[342899873,1732199440124,-500.0,0.00041095,18]
[342899875,1732199440133,-500.0,0.00041095,18]
[342899877,1732199440142,-500.0,0.00041095,18]
[342899879,1732199440151,-576.57,0.00041095,18]
[342899881,1732199440162,-2392.3,0.00041095,18]
[342899883,1732199440173,-500.0,0.00041095,18]
[342899885,1732199440183,-1500.0,0.00041095,120]
[342899887,1732199440192,-1817.41,0.00041095,18]
[342899889,1732199440202,-500.0,0.00041095,18]
[342899891,1732199440211,-500.0,0.00041095,18]
[342899893,1732199440220,-891.12,0.00041095,18]
[342899895,1732199440230,-1535.09,0.00041095,18]
[342899897,1732199440239,-306.26948466,0.00041095,18]
[342899899,1732199440248,-1171.48,0.00041095,18]
[342899901,1732199440258,-500.0,0.00041095,18]
[342899903,1732199440267,-500.0,0.00041095,18]
[342899905,1732199440276,-930.5,0.00041095,18]
[342899907,1732199440286,-1073.6,0.00041095,18]
[342899909,1732199440295,-500.0,0.00041095,18]
[342899911,1732199440305,-500.0,0.00041095,18]
[342899913,1732199440314,-500.0,0.00041095,18]
[342899915,1732199440323,-1426.95,0.00041095,18]
[342899917,1732199440332,-2250.73,0.00041095,18]
[342899919,1732199440341,-2396.92,0.00041095,18]
[342899921,1732199440350,-4948.4,0.00041095,18]
[342899923,1732199440360,-500.0,0.00041095,18]
[342899925,1732199440369,-500.0,0.00041095,18]
[342899927,1732199440378,-500.0,0.00041095,18]
[342899929,1732199440388,-500.0,0.00041095,18]
[342899931,1732199440397,-500.0,0.00041095,18]
[342899933,1732199440406,-500.0,0.00041095,18]
[342899935,1732199440415,-1324.11,0.00041095,18]
[342899937,1732199440429,-500.0,0.00041095,18]
[342899939,1732199440438,-500.0,0.00041095,18]
[342899941,1732199440447,-914.54,0.00041095,18]
[342899943,1732199440458,-500.0,0.00041095,18]
[342899945,1732199440467,-500.0,0.00041095,18]
[342899947,1732199440476,-349.01715503,0.00041095,18]
[342899949,1732199440486,-534.27,0.00041095,7]
[342899951,1732199440495,-500.0,0.00041095,18]
[342899953,1732199440505,-632.98,0.00041095,18]
[342899955,1732199440515,-705.08,0.00041095,18]
[342899957,1732199440524,-653.14,0.00041095,18]
[342899959,1732199440533,-500.0,0.00041095,18]
[342899961,1732199440542,-668.12,0.00041095,18]
[342899963,1732199440552,-500.0,0.00041095,18]
[342899965,1732199440562,-500.0,0.00041095,18]
[342899966,1732199440571,-500.68010263,0.00041095,18]
[342899967,1732199440580,-1184.36,0.00041095,18]
[342899968,1732199440589,-500.0,0.00041095,18]
[342899969,1732199440599,-500.0,0.00041095,18]
[342899970,1732199440608,-500.0,0.00041095,18]
[342899971,1732199440617,-500.0,0.00041095,18]
[342899972,1732199440627,-543.6,0.00041095,18]
[342899973,1732199440636,-2215.45,0.00041095,18]
[342899974,1732199440645,-500.0,0.00041095,18]
[342899975,1732199440654,-500.0,0.00041095,18]
[342899976,1732199440664,-500.0,0.00041095,18]
[342899977,1732199440678,-1478.2,0.00041095,18]
[342899979,1732199440688,-1426.49,0.00041095,18]
[342899981,1732199440697,-790.05,0.00041095,18]
[342899983,1732199440707,-500.0,0.00041095,18]
[342899985,1732199440717,-581.74771349,0.00041095,18]
[342899987,1732199440725,-500.0,0.00041095,18]
[342899989,1732199440735,-500.0,0.00041095,18]
[342899991,1732199440746,-600.57,0.00041095,18]
[342899993,1732199440763,-500.0,0.00041095,18]
[342899995,1732199440773,-529.75,0.00041095,18]
[342899997,1732199440783,-2122.71,0.00041095,18]
[342899999,1732199440792,-500.0,0.00041095,18]
[342900001,1732199440802,-859.01,0.00041095,18]
[342900003,1732199440811,-500.0,0.00041095,18]
[342900005,1732199440820,-500.0,0.00041095,18]
[342900007,1732199440830,-1977.19,0.00041095,18]
[342900009,1732199440839,-500.0,0.00041095,18]
[342900010,1732199440849,-1432.38,0.00041095,18]
[342900012,1732199440858,-500.0,0.00041095,18]
[342900015,1732199440868,-606.18,0.00041095,18]
[342900016,1732199440877,-2472.57,0.00041095,18]
[342900018,1732199440886,-629.86,0.00041095,18]
[342900020,1732199440896,-1009.33,0.00041095,18]
[342900022,1732199440905,-500.0,0.00041095,18]
[342900024,1732199440914,-6237.96,0.00041095,18]
[342900026,1732199440933,-500.0,0.00041095,18]
[342900028,1732199440942,-1653.26,0.00041095,18]
[342900030,1732199440951,-500.0,0.00041095,18]
[342900032,1732199440959,-500.0,0.00041095,18]
[342900034,1732199440968,-500.0,0.00041095,18]
[342900036,1732199440977,-1033.33,0.00041095,18]
[342900038,1732199440986,-500.0,0.00041095,18]
[342900040,1732199440995,-150.0,0.00041095,18]
[342900042,1732199441005,-563.25,0.00041095,18]
[342900044,1732199441014,-787.81,0.00041095,18]
[342900046,1732199441023,-783.85,0.00041095,18]
[342900048,1732199441032,-500.0,0.00041095,18]
[342900050,1732199441042,-2056.99,0.00041095,18]
[342900052,1732199441051,-151.0,0.00041095,14]
[342900054,1732199441060,-500.0,0.00041095,18]
[342900056,1732199441070,-2137.16,0.00041095,18]
[342900058,1732199441079,-1553.89,0.00041095,18]
[342900060,1732199441089,-500.0,0.00041095,18]
[342900062,1732199441098,-3963.56,0.00041095,18]
[342900064,1732199441107,-151.0,0.00041095,14]
[342900066,1732199441116,-500.0,0.00041095,18]
[342900068,1732199441125,-500.0,0.00041095,18]
[342900070,1732199441135,-500.0,0.00041095,18]
[342900072,1732199441144,-500.0,0.00041095,18]
[342900074,1732199441152,-772.17,0.00041095,18]
[342900075,1732199441161,-1945.98,0.00041095,18]
[342900077,1732199441174,-500.0,0.00041095,18]
[342900079,1732199441184,-500.0,0.00041095,18]
[342900081,1732199441194,-500.0,0.00041095,18]
[342900083,1732199441203,-500.0,0.00041095,18]
[342900085,1732199441213,-500.0,0.00041095,18]
[342900087,1732199441222,-500.0,0.00041095,18]
[342900089,1732199441231,-1235.91,0.00041095,18]
[342900091,1732199441241,-5549.97,0.00041095,18]
[342900094,1732199441251,-1287.87,0.00041095,18]
[342900095,1732199441261,-500.0,0.00041095,18]
[342900097,1732199441271,-500.0,0.00041095,18]
[342900099,1732199441281,-1814.21,0.00041095,18]
[342900102,1732199441291,-517.01,0.00041095,18]
[342900104,1732199441301,-500.0,0.00041095,18]
[342900106,1732199441311,-500.0,0.00041095,18]
[342900108,1732199441320,-4876.46,0.00041095,18]
[342900110,1732199441330,-1091.75,0.00041095,18]
[342900112,1732199441340,-507.38,0.00041095,18]
[342900114,1732199441350,-500.0,0.00041095,18]
[342900115,1732199441360,-500.0,0.00041095,18]
[342900117,1732199441369,-367.743508,0.00041095,14]
[342900119,1732199441378,-676.94,0.00041095,18]
[342900121,1732199441388,-2847.03,0.00041095,18]
[342900123,1732199441397,-557.09,0.00041095,18]
[342900125,1732199441409,-3509.44,0.00041095,18]
[342900128,1732199441423,-500.0,0.00041095,18]
[342900129,1732199441433,-3537.99,0.00041095,18]
[342900132,1732199441445,-367.743508,0.00041095,14]
[342900134,1732199441455,-500.0,0.00041095,18]
[342900136,1732199441464,-847.95,0.00041095,18]
[342900138,1732199441474,-500.0,0.00041095,18]
[342900140,1732199441483,-1883.13,0.00041095,18]
[342900142,1732199441493,-7181.82,0.00041095,18]
[342900144,1732199441502,-520.42,0.00041095,18]
[342900146,1732199441511,-500.0,0.00041095,18]
[342900147,1732199441521,-743.52,0.00041095,18]
[342900150,1732199441532,-500.0,0.00041095,18]
[342900152,1732199441542,-863.4,0.00041095,18]
[342900154,1732199441552,-619.34,0.00041095,18]
[342900155,1732199441561,-500.0,0.00041095,18]
[342900157,1732199441571,-1290.72,0.00041095,18]
[342900159,1732199441580,-2661.51,0.00041095,18]
[342900162,1732199441589,-500.0,0.00041095,18]
[342900164,1732199441599,-500.0,0.00041095,18]
[342900166,1732199441609,-500.0,0.00041095,18]
[342900167,1732199441618,-747.11,0.00041095,18]
[342900169,1732199441628,-500.0,0.00041095,18]
[342900171,1732199441638,-950.06,0.00041095,18]
[342900173,1732199441648,-1336.14,0.00041095,18]
[342900175,1732199441658,-500.0,0.00041095,18]
[342900177,1732199441667,-502.63513573,0.00041095,18]
[342900179,1732199441680,-500.0,0.00041095,18]
[342900181,1732199441690,-509.02,0.00041095,18]
[342900184,1732199441699,-732.65,0.00041095,18]
[342900186,1732199441709,-527.39,0.00041095,18]
[342900188,1732199441719,-529.36,0.00041095,18]
[342900190,1732199441729,-500.0,0.00041095,18]
[342900191,1732199441738,-1619.03,0.00041095,18]
[342900194,1732199441748,-500.0,0.00041095,18]
[342900196,1732199441760,-500.0,0.00041095,18]
[342900198,1732199441769,-1664.0,0.00041095,18]
[342900199,1732199441782,-500.0,0.00041095,18]
[342900202,1732199441792,-500.0,0.00041095,18]
[342900204,1732199441804,-639.44,0.00041095,18]
[342900205,1732199441813,-2326.55,0.00041095,18]
[342900208,1732199441823,-500.0,0.00041095,18]
[342900210,1732199441832,-827.15,0.00041095,18]
[342900212,1732199441842,-813.35,0.00041095,18]
[342900214,1732199441853,-723.15,0.00041095,18]
[342900216,1732199441863,-500.0,0.00041095,18]
[342900218,1732199441872,-583.46,0.00041095,18]
[342900220,1732199441882,-500.0,0.00041095,18]
[342900221,1732199441891,-500.0,0.00041095,18]
[342900223,1732199441900,-576.13,0.00041095,18]
[342900225,1732199441910,-6737.18,0.00041095,18]
[342900227,1732199441921,-616.15,0.00041095,18]
[342900229,1732199441930,-500.0,0.00041095,18]
[342900231,1732199441940,-500.0,0.00041095,18]
[342900233,1732199441950,-500.0,0.00041095,18]
[342900235,1732199441959,-500.0,0.00041095,18]
[342900237,1732199441969,-500.0,0.00041095,18]
[342900239,1732199441979,-500.0,0.00041095,18]
[342900241,1732199441988,-1193.64,0.00041095,18]
[342900244,1732199441998,-500.0,0.00041095,120]
[342900245,1732199442007,-302.12,0.00041096,2]
[342900247,1732199442017,-2483.70444135,0.00041156,15]
[342900249,1732199442026,-243.5409023,0.00041212,9]
[342900252,1732199442035,-1926.0,0.00041312,2]
[342900253,1732199442045,-909.0,0.00041312,2]
[342900255,1732199442056,-1260.0,0.00041312,2]
[342900258,1732199442066,-3863.782,0.00041312,2]
[342900260,1732199442076,-814.0,0.00041312,2]
[342900262,1732199442087,-3513.0,0.00041312,2]
[342900264,1732199442097,-1092.0,0.00041312,2]
[342900266,1732199442107,-5938.0,0.00041312,2]
[342900268,1732199442117,-564.0,0.00041312,2]
[342900269,1732199442127,-150.0,0.00041312,2]
[342900272,1732199442138,-632.0,0.00041312,2]
[342900274,1732199442148,-1157.0,0.00041312,2]
[342900276,1732199442159,-3670.7,0.00041315,120]
[342900277,1732199442172,-1333.53,0.00041315,120]
[342900279,1732199442182,-657.413899,0.00041369,18]
[342900282,1732199442191,-170.54209,0.00041369,18]
[342900283,1732199442201,-686.88,0.00041369,18]
[342900285,1732199442211,-1132.23,0.00041369,18]
[342900287,1732199442221,-500.0,0.00041369,18]
[342900289,1732199442230,-500.0,0.00041369,18]
[342900291,1732199442240,-500.0,0.00041369,18]
[342900293,1732199442250,-500.0,0.00041369,18]
[342900296,1732199442261,-500.0,0.00041369,18]
[342900297,1732199442271,-500.0,0.00041369,18]
[342900299,1732199442280,-500.0,0.00041369,18]
[342900301,1732199442290,-500.0,0.00041369,18]
[342900303,1732199442300,-500.0,0.00041369,18]
[342900305,1732199442309,-500.0,0.00041369,18]
[342900307,1732199442319,-500.0,0.00041369,18]
[342900309,1732199442328,-500.0,0.00041369,18]
[342900311,1732199442337,-500.0,0.00041369,18]
[342900314,1732199442347,-500.0,0.00041369,18]
[342900316,1732199442357,-500.0,0.00041369,18]
[342900319,1732199442366,-500.0,0.00041369,18]
[342900321,1732199442376,-500.0,0.00041369,18]
[342900323,1732199442385,-500.0,0.00041369,18]
[342900325,1732199442394,-500.0,0.00041369,18]
[342900327,1732199442404,-500.0,0.00041369,18]
[342900329,1732199442414,-500.0,0.00041369,18]
[342900331,1732199442427,-500.0,0.00041369,18]
[342900333,1732199442436,-500.0,0.00041369,18]
[342900335,1732199442446,-500.0,0.00041369,18]
[342900337,1732199442455,-780.83,0.00041369,18]
[342900339,1732199442465,-778.02,0.00041369,18]
[342900341,1732199442475,-613.54537876,0.00041369,18]
[342900343,1732199442484,-841.3,0.00041369,18]
[342900345,1732199442494,-500.0,0.00041369,18]
[342900349,1732199442503,-500.0,0.00041369,18]
[342900353,1732199442514,-500.0,0.00041369,18]
[342900357,1732199442524,-500.0,0.00041369,18]
[342900361,1732199442534,-644.88,0.00041369,18]
[342900364,1732199442543,-500.74,0.00041369,18]
[342900367,1732199442554,-500.0,0.00041369,18]
[342900371,1732199442563,-500.0,0.00041369,18]
[342900375,1732199442573,-500.0,0.00041369,18]
[342900379,1732199442584,-500.0,0.00041369,18]
[342900383,1732199442594,-500.0,0.00041369,18]
[342900387,1732199442605,-500.0,0.00041369,18]
[342900390,1732199442616,-1032.66,0.00041369,18]
[342900392,1732199442626,-500.0,0.00041369,18]
[342900394,1732199442636,-500.0,0.00041369,18]
[342900396,1732199442646,-500.0,0.00041369,18]
[342900398,1732199442656,-500.0,0.00041369,18]
[342900401,1732199442666,-500.0,0.00041369,18]
[342900403,1732199442679,-500.0,0.00041369,18]
[342900405,1732199442688,-500.0,0.00041369,18]
[342900406,1732199442698,-500.0,0.00041369,18]
[342900408,1732199442707,-815.66,0.00041369,18]
[342900410,1732199442717,-500.0,0.00041369,18]
[342900412,1732199442727,-500.0,0.00041369,18]
[342900414,1732199442736,-500.0,0.00041369,18]
[342900416,1732199442748,-661.83,0.00041369,18]
[342900418,1732199442766,-500.0,0.00041369,18]
[342900420,1732199442776,-500.0,0.00041369,18]
[342900421,1732199442787,-500.0,0.00041369,18]
[342900422,1732199442798,-500.0,0.00041369,18]
[342900423,1732199442810,-500.0,0.00041369,18]
[342900427,1732199442944,-500.0,0.00041369,18]
[342900429,1732199442955,-500.0,0.00041369,18]
[342900431,1732199442966,-1263.69,0.00041369,18]
[342900433,1732199442975,-500.0,0.00041369,18]
[342900435,1732199442985,-500.0,0.00041369,18]
[342900437,1732199442995,-500.0,0.00041369,18]
[342900439,1732199443005,-500.0,0.00041369,18]
[342900441,1732199443015,-500.0,0.00041369,18]
[342900443,1732199443024,-460.14824204,0.00041369,18]
[342900445,1732199443033,-519.82,0.00041369,18]
[342900447,1732199443043,-653.14,0.00041369,18]
[342900449,1732199443052,-500.0,0.00041369,18]
[342900451,1732199443061,-500.0,0.00041369,18]
[342900453,1732199443071,-500.0,0.00041369,18]
[342900455,1732199443081,-500.0,0.00041369,18]
[342900457,1732199443090,-500.0,0.00041369,18]
[342900459,1732199443100,-500.0,0.00041369,18]
[342900461,1732199443109,-503.14,0.00041369,18]
[342900463,1732199443119,-540.62,0.00041369,18]
[342900465,1732199443128,-500.0,0.00041369,18]
[342900467,1732199443138,-500.0,0.00041369,18]
[342900469,1732199443148,-500.0,0.00041369,18]
[342900471,1732199443157,-619.85,0.00041369,18]
[342900473,1732199443167,-500.0,0.00041369,18]
[342900475,1732199443178,-500.0,0.00041369,18]
[342900477,1732199443188,-500.0,0.00041369,18]
[342900479,1732199443198,-587.02,0.00041369,18]
[342900481,1732199443208,-500.0,0.00041369,18]
[342900483,1732199443218,-1022.9,0.00041369,18]
[342900485,1732199443228,-544.47,0.00041369,18]
[342900487,1732199443238,-500.0,0.00041369,18]
[342900489,1732199443248,-500.0,0.00041369,18]
[342900491,1732199443258,-598.89,0.00041369,18]
[342900493,1732199443268,-500.0,0.00041369,18]
[342900495,1732199443278,-500.0,0.00041369,18]
[342900497,1732199443287,-500.0,0.00041369,18]
[342900499,1732199443297,-500.0,0.00041369,18]
[342900501,1732199443307,-500.0,0.00041369,18]
[342900503,1732199443316,-575.52,0.00041369,18]
[342900505,1732199443325,-500.0,0.00041369,18]
[342900507,1732199443335,-500.0,0.00041369,18]
[342900509,1732199443345,-500.0,0.00041369,18]
[342900511,1732199443354,-752.96,0.00041369,18]
[342900513,1732199443364,-500.0,0.00041369,18]
[342900515,1732199443374,-664.75,0.00041369,18]
[342900517,1732199443385,-309.04036626,0.00041369,18]
[342900519,1732199443395,-500.0,0.00041369,18]
[342900521,1732199443404,-336.48462253,0.00041369,18]
[342900523,1732199443414,-500.0,0.00041369,18]
[342900525,1732199443427,-1075.41,0.00041369,18]
[342900527,1732199443436,-500.0,0.00041369,18]
[342900529,1732199443446,-200.0,0.00041369,7]
[342900531,1732199443455,-500.0,0.00041369,18]
[342900533,1732199443464,-500.0,0.00041369,18]
[342900535,1732199443474,-500.0,0.00041369,18]
[342900537,1732199443484,-531.22,0.00041369,18]
[342900539,1732199443494,-1262.59,0.00041369,18]
[342900541,1732199443506,-500.0,0.00041369,18]
[342900543,1732199443516,-500.0,0.00041369,18]
[342900545,1732199443525,-551.95,0.00041369,18]
[342900547,1732199443535,-1323.6,0.00041369,18]
[342900549,1732199443545,-500.0,0.00041369,18]
[342900551,1732199443555,-976.25,0.00041369,18]
[342900553,1732199443564,-586.24,0.00041369,18]
[342900555,1732199443574,-500.0,0.00041369,18]
[342900557,1732199443584,-500.0,0.00041369,18]
[342900559,1732199443593,-500.0,0.00041369,18]
[342900561,1732199443603,-500.0,0.00041369,7]
[342900563,1732199443613,-500.0,0.00041369,18]
[342900565,1732199443623,-500.0,0.00041369,18]
[342900567,1732199443632,-500.0,0.00041369,18]
[342900569,1732199443642,-544.81,0.00041369,18]